fUST/lending_fUST_20260107
["ID","MTS","AMOUNT","RATE_DAILY","PERIOD"]
[400661579,1767774640527,-256.20863618,0.000209,2]
[400661580,1767774640535,-277.06974618,0.00021,2]
[400661581,1767774640545,-1081.32871409,0.00021,10]
[400661582,1767774640554,-50000.0,0.00021,2]
[400661583,1767774640563,-1000.0,0.00021005,2]
[400661584,1767774640573,-492.0,0.00021005,2]
[400661586,1767774640582,-1795.610498,0.00021203,14]
[400661588,1767774640592,-201.9,0.00021364,2]
[400661590,1767774640601,-182.25330539,0.000215,2]
[400661591,1767774640610,-1038.80075693,0.000215,2]
[400661592,1767774640619,-12849.42882741,0.000215,2]
[400661593,1767774640628,-568.10876052,0.0002196,10]
[400661595,1767774640638,-90000.0,0.00022,2]
[400661596,1767774640648,-171.84386487,0.00022,10]
[400661597,1767774640657,-64723.72893292,0.00022,7]
[400661598,1767774640666,-828.88420571,0.00022,20]
[400661599,1767774640675,-33706.85557129,0.00022,2]
[400661600,1767774640684,-25963.54,0.00022,2]
[400661601,1767774640693,-861.0,0.00022108,2]
[400661602,1767774640702,-1032.71087693,0.000225,2]
[400661603,1767774640711,-377.55115008,0.00022564,2]
[400661604,1767774640720,-2098.37566732,0.00022649,16]
[400661605,1767774640730,-330.56,0.000229,2]
[400661606,1767774640739,-201.9,0.00022973,2]
[400661607,1767774640749,-243.07,0.00023,7]
[400661608,1767774640758,-1000.0,0.00023105,10]
[400661609,1767774640768,-791.0,0.00023105,10]
[400661610,1767774640777,-258.12,0.000232,7]
[400661611,1767774640786,-500.0,0.00023257,2]
[400661612,1767774640796,-500.0,0.00023502,2]
[400661613,1767774640805,-500.0,0.00023515,2]
[400661614,1767774640814,-500.0,0.00023634,2]
[400661615,1767774640822,-13649.49,0.00023634,3]
[400661616,1767774640831,-2811.62,0.000237,14]
[400661617,1767774640840,-2832.2028351,0.00023934,2]
[400661618,1767774640849,-26108.9696127,0.00023934,2]
[400661619,1767774640859,-1595.0203817,0.00023934,2]
[400661620,1767774640868,-2735.7363248,0.00023934,2]
[400661621,1767774640877,-23906.54289923,0.00024,2]
[400661622,1767774640886,-245.28508092,0.00024,60]
[400661623,1767774640895,-1734.693215,0.00024,2]
[400661624,1767774640904,-465.43647205,0.00024,2]
[400661625,1767774640913,-618.86,0.00024,14]
[400661626,1767774640922,-2411.3518654,0.00024094,19]
[400661627,1767774640930,-504346.20009652,0.00024142,2]
[400661628,1767774641021,-30240.28138531,0.000242,2]
[400661629,1767774641042,-500.0,0.00024496,2]
[400661630,1767774641052,-25963.54,0.000245,2]
[400661631,1767774641061,-413.31915377,0.00024564,2]
[400661632,1767774641070,-2200.0,0.00024577,2]
[400661633,1767774641079,-201.9,0.00024583,2]
[400661634,1767774641088,-13649.49,0.000246,3]
[400661635,1767774641097,-156724.58563049,0.0002465,2]
[400661636,1767774641106,-513.79712507,0.0002465,2]
[400661637,1767774641115,-380.0,0.00024658,2]
[400661638,1767774641124,-280.28268334,0.00024691,2]
[400661639,1767774641133,-16821.80898001,0.00024774,2]
[400661640,1767774641142,-163.0,0.00024795,14]
[400661641,1767774641152,-622309.500941,0.000249,2]
[400661642,1767774641162,-2660.39322093,0.00025,2]
[400661643,1767774641171,-2673.38990505,0.00025,2]
[400661644,1767774641183,-10364.0,0.00025,2]
[400661645,1767774641193,-500.0,0.00025,2]
[400661646,1767774641203,-300.0,0.00025,30]
[400661647,1767774641212,-1363.86254436,0.00025,2]
[400661648,1767774641221,-759.01355597,0.00025,2]
[400661649,1767774641230,-183.522133,0.00025,7]
[400661650,1767774641239,-157.01821301,0.00025083,5]
[400661651,1767774641249,-151.0,0.00025105,7]
[400661652,1767774641259,-151.0,0.00025105,7]
[400661653,1767774641268,-579.85119945,0.000252,5]
[400661654,1767774641279,-250.0,0.00025205,2]
[400661655,1767774641288,-500.0,0.00025206,2]
[400661656,1767774641298,-701.0,0.00025206,2]
[400661657,1767774641307,-500.0,0.00025206,2]
[400661658,1767774641316,-500.0,0.00025206,2]
[400661660,1767774641325,-500.0,0.00025206,2]
[400661661,1767774641334,-176.1819283,0.00025206,2]
[400661662,1767774641343,-2200.0,0.00025222,7]
[400661663,1767774641353,-258.12,0.000253,7]
[400661664,1767774641363,-243.07,0.000253,7]
[400661665,1767774641372,-2200.0,0.00025313,7]
[400661666,1767774641382,-500.0,0.00025343,2]
[400661667,1767774641391,-701.0,0.00025343,2]
[400661668,1767774641400,-500.0,0.00025343,2]
[400661669,1767774641410,-500.0,0.00025343,2]
[400661670,1767774641419,-151.56017143,0.00025343,2]
[400661671,1767774641428,-229.44903306,0.00025343,2]
[400661672,1767774641437,-500.0,0.00025343,2]
[400661673,1767774641446,-261.5353383,0.00025343,2]
[400661674,1767774641455,-1000.0,0.00025416,10]
[400661675,1767774641464,-1000.0,0.00025416,10]
[400661676,1767774641474,-2200.0,0.0002544,7]
[400661677,1767774641483,-900.0,0.00025469,3]
[400661678,1767774641493,-500.0,0.0002548,2]
[400661679,1767774641503,-701.0,0.0002548,2]
[400661680,1767774641512,-500.0,0.0002548,2]
[400661681,1767774641521,-364.24644296,0.0002548,2]
[400661682,1767774641531,-152.02997996,0.0002548,2]
[400661683,1767774641546,-500.0,0.0002548,2]
[400661684,1767774641556,-1000.0,0.000255,2]
[400661685,1767774641565,-500.0,0.00025538,7]
[400661686,1767774641575,-2200.0,0.00025591,7]
[400661687,1767774641585,-500.0,0.00025592,7]
[400661688,1767774641595,-500.0,0.00025617,2]
[400661689,1767774641604,-701.0,0.00025617,2]
[400661690,1767774641614,-500.0,0.00025617,2]
[400661691,1767774641625,-266.491439,0.00025617,2]
[400661692,1767774641635,-350.0,0.00025753,2]
[400661693,1767774641644,-509.34709244,0.00025754,2]
[400661694,1767774641654,-701.0,0.00025754,2]
[400661695,1767774641663,-500.0,0.00025754,2]
[400661696,1767774641672,-2200.0,0.00025775,7]
[400661697,1767774641682,-2811.62,0.000258,14]
[400661698,1767774641691,-872.0,0.00025803,7]
[400661699,1767774641701,-872.0,0.0002585,7]
[400661700,1767774641710,-2200.0,0.00025856,7]
[400661701,1767774641719,-874.0,0.00025858,7]
[400661702,1767774641729,-157.01821301,0.0002586,5]
[400661703,1767774641738,-2200.0,0.00025881,7]
[400661704,1767774641747,-701.0,0.00025891,2]
[400661705,1767774641757,-500.0,0.00025891,2]
[400661706,1767774641766,-2200.0,0.00025891,7]
[400661707,1767774641776,-25963.54,0.000259,2]
[400661708,1767774641785,-2000.0,0.00025907,7]
[400661709,1767774641795,-500.0,0.00025947,7]
[400661710,1767774641804,-874.0,0.00025959,2]
[400661711,1767774641813,-133963.57783721,0.00026,30]
[400661712,1767774641823,-17467.00445744,0.00026,2]
[400661713,1767774641832,-161.0,0.00026,5]
[400661714,1767774641841,-872.0,0.00026017,7]
[400661715,1767774641850,-500.0,0.00026025,2]
[400661716,1767774641859,-210.40515533,0.00026025,2]
[400661717,1767774641869,-500.0,0.00026025,2]
[400661718,1767774641878,-272.15124773,0.00026025,2]
[400661719,1767774641887,-174.35129213,0.00026025,2]
[400661720,1767774641896,-701.0,0.00026028,2]
[400661721,1767774641908,-500.0,0.00026028,2]
[400661722,1767774641918,-872.0,0.00026058,2]
[400661723,1767774641929,-500.0,0.00026059,7]
[400661724,1767774641938,-330.56,0.000261,2]
[400661725,1767774641948,-194.56620473,0.0002616,2]
[400661726,1767774641958,-500.0,0.00026162,2]
[400661727,1767774641967,-500.0,0.00026162,2]
[400661728,1767774641977,-701.0,0.00026165,2]
[400661729,1767774641987,-500.0,0.00026165,2]
[400661730,1767774641996,-201.9,0.00026192,2]
[400661731,1767774642005,-154.82317524,0.00026299,2]
[400661732,1767774642014,-306.8595936,0.00026299,2]
[400661733,1767774642024,-151.71242224,0.00026299,2]
[400661734,1767774642033,-872.0,0.00026299,2]
[400661735,1767774642042,-872.0,0.00026301,2]
[400661736,1767774642052,-450.0,0.00026301,2]
[400661737,1767774642061,-701.0,0.00026302,2]
[400661738,1767774642070,-500.0,0.00026302,2]
[400661739,1767774642079,-2200.0,0.00026321,7]
[400661740,1767774642090,-2200.0,0.00026336,7]
[400661741,1767774642101,-1974.17602471,0.00026413,2]
[400661742,1767774642110,-701.0,0.00026439,2]
[400661743,1767774642119,-302.47712024,0.00026439,2]
[400661744,1767774642129,-872.0,0.0002644,2]
[400661745,1767774642139,-872.0,0.00026529,2]
[400661746,1767774642148,-200.0,0.0002654,14]
[400661747,1767774642157,-449.08715747,0.00026564,2]
[400661748,1767774642166,-701.0,0.00026576,2]
[400661749,1767774642177,-258.12,0.000266,7]
[400661750,1767774642192,-243.07,0.000266,7]
[400661751,1767774642202,-872.0,0.0002661,2]
[400661752,1767774642211,-2000.0,0.00026611,7]
[400661753,1767774642220,-1148.14949882,0.00026658,5]
[400661754,1767774642232,-13649.49,0.000267,3]
[400661755,1767774642242,-701.0,0.00026713,2]
[400661756,1767774642252,-2200.0,0.00026779,7]
[400661757,1767774642262,-550.0,0.00026849,2]
[400661758,1767774642275,-701.0,0.0002685,2]
[400661759,1767774642289,-2200.0,0.00026862,7]
[400661760,1767774642299,-872.0,0.00026984,7]
[400661761,1767774642308,-3064.68636146,0.00026984,24]
[400661762,1767774642318,-701.0,0.00026987,2]
[400661763,1767774642327,-1815.6497538,0.00027,2]
[400661764,1767774642336,-600.0,0.00027,14]
[400661765,1767774642345,-261657.74966145,0.00027,7]
[400661766,1767774642355,-500.0,0.00027005,7]
[400661767,1767774642364,-26108.9696127,0.00027021,2]
[400661768,1767774642374,-1595.0203817,0.00027021,2]
[400661769,1767774642383,-701.0,0.00027124,2]
[400661770,1767774642392,-872.0,0.00027133,2]
[400661771,1767774642401,-25963.54,0.000272,2]
[400661772,1767774642411,-872.0,0.00027236,2]
[400661773,1767774642421,-701.0,0.00027261,2]
[400661774,1767774642431,-872.0,0.00027296,2]
[400661775,1767774642441,-2811.62,0.000273,14]
[400661776,1767774642450,-2000.0,0.00027316,7]
[400661777,1767774642460,-872.0,0.00027334,2]
[400661778,1767774642469,-500.0,0.00027397,2]
[400661779,1767774642478,-266.46290101,0.00027397,2]
[400661780,1767774642488,-500.0,0.00027397,2]
[400661781,1767774642497,-500.0,0.00027397,2]
[400661782,1767774642506,-601.36,0.00027397,2]
[400661783,1767774642516,-500.0,0.00027397,2]
[400661784,1767774642525,-500.0,0.00027397,2]
[400661785,1767774642534,-500.0,0.00027397,2]
[400661786,1767774642543,-500.0,0.00027397,2]
[400661787,1767774642552,-500.0,0.00027397,2]
[400661788,1767774642562,-300.51321961,0.00027397,2]
[400661789,1767774642571,-500.0,0.00027397,2]
[400661790,1767774642580,-590.74033955,0.00027397,2]
[400661791,1767774642589,-500.0,0.00027397,2]
[400661792,1767774642598,-500.0,0.00027397,2]
[400661793,1767774642607,-500.0,0.00027397,2]
[400661794,1767774642616,-500.0,0.00027397,2]
[400661795,1767774642626,-690.11,0.00027397,2]
[400661796,1767774642635,-202.31547305,0.00027397,2]
[400661797,1767774642644,-327.373558,0.00027397,2]
[400661798,1767774642653,-14665.45,0.00027397,2]
[400661799,1767774642662,-477.66225869,0.00027397,2]
[400661800,1767774642672,-500.0,0.00027397,2]
[400661801,1767774642681,-500.0,0.00027397,2]
[400661802,1767774642690,-500.0,0.00027397,2]
[400661803,1767774642699,-500.0,0.00027397,2]
[400661804,1767774642708,-500.0,0.00027397,2]
[400661805,1767774642805,-500.0,0.00027397,2]
[400661806,1767774642815,-500.0,0.00027397,2]
[400661807,1767774642824,-500.0,0.00027397,2]
[400661808,1767774642834,-500.0,0.00027397,2]
[400661809,1767774642843,-500.0,0.00027397,2]
[400661810,1767774642854,-454.06231089,0.00027397,2]
[400661811,1767774642864,-500.0,0.00027397,2]
[400661812,1767774642874,-500.0,0.00027397,2]
[400661813,1767774642883,-500.0,0.00027397,2]
[400661814,1767774642893,-500.0,0.00027397,2]
[400661815,1767774642902,-500.0,0.00027397,2]
[400661816,1767774642912,-500.0,0.00027397,2]
[400661817,1767774642922,-345.86721317,0.00027397,2]
[400661818,1767774642933,-500.0,0.00027397,2]
[400661819,1767774642942,-284.91988895,0.00027397,2]
[400661820,1767774642952,-500.0,0.00027397,2]
[400661821,1767774642961,-453.49823966,0.00027397,2]
[400661822,1767774642971,-500.0,0.00027397,2]
[400661823,1767774642980,-500.68429147,0.00027397,2]
[400661824,1767774642989,-500.0,0.00027397,2]
[400661825,1767774642999,-500.0,0.00027397,2]
[400661826,1767774643009,-500.0,0.00027397,2]
[400661827,1767774643018,-547.01642659,0.00027397,2]
[400661828,1767774643028,-500.0,0.00027397,2]
[400661829,1767774643037,-500.0,0.00027397,2]
[400661830,1767774643048,-500.0,0.00027397,2]
[400661831,1767774643058,-500.0,0.00027397,2]
[400661832,1767774643067,-717.62,0.00027397,2]
[400661833,1767774643076,-496.70020353,0.00027397,2]
[400661834,1767774643086,-500.0,0.00027397,2]
[400661835,1767774643095,-500.0,0.00027397,2]
[400661837,1767774643104,-500.0,0.00027397,2]
[400661838,1767774643113,-500.0,0.00027397,2]
[400661840,1767774643123,-956.27,0.00027397,2]
[400661841,1767774643133,-500.0,0.00027397,2]
[400661842,1767774643142,-200.11830071,0.00027397,2]
[400661843,1767774643152,-299.91358732,0.00027397,2]
[400661844,1767774643161,-236.50086847,0.00027397,2]
[400661845,1767774643171,-500.0,0.00027397,2]
[400661846,1767774643180,-500.0,0.00027397,2]
[400661847,1767774643191,-494.14749146,0.00027397,2]
[400661848,1767774643201,-500.0,0.00027397,2]
[400661849,1767774643210,-1076.6,0.00027397,2]
[400661850,1767774643219,-500.0,0.00027397,2]
[400661851,1767774643230,-500.0,0.00027397,2]
[400661852,1767774643240,-500.0,0.00027397,2]
[400661853,1767774643250,-500.0,0.00027397,2]
[400661854,1767774643260,-500.0,0.00027397,2]
[400661855,1767774643271,-500.0,0.00027397,2]
[400661856,1767774643281,-463.69991669,0.00027397,2]
[400661857,1767774643291,-500.0,0.00027397,2]
[400661858,1767774643300,-516.11896112,0.00027397,2]
[400661859,1767774643310,-500.0,0.00027397,2]
[400661860,1767774643319,-493.95274048,0.00027397,2]
[400661861,1767774643328,-500.0,0.00027397,2]
[400661862,1767774643339,-480.11694676,0.00027397,2]
[400661863,1767774643348,-216.47005031,0.00027397,2]
[400661864,1767774643358,-528.75024245,0.00027397,2]
[400661865,1767774643368,-500.0,0.00027397,2]
[400661866,1767774643378,-411.68091884,0.00027397,2]
[400661867,1767774643387,-500.0,0.00027397,2]
[400661868,1767774643397,-500.0,0.00027397,2]
[400661869,1767774643406,-500.0,0.00027397,2]
[400661870,1767774643416,-531.43503261,0.00027397,2]
[400661871,1767774643426,-500.0,0.00027397,2]
[400661872,1767774643436,-500.0,0.00027397,2]
[400661873,1767774643446,-4613.91,0.00027397,2]
[400661874,1767774643456,-500.0,0.00027397,2]
[400661875,1767774643466,-500.0,0.00027397,2]
[400661876,1767774643477,-500.0,0.00027397,2]
[400661877,1767774643487,-500.0,0.00027397,2]
[400661878,1767774643497,-500.0,0.00027397,2]
[400661879,1767774643506,-504.14689892,0.00027397,2]
[400661880,1767774643515,-500.0,0.00027397,2]
[400661881,1767774643524,-836.4,0.00027397,2]
[400661882,1767774643534,-500.0,0.00027397,2]
[400661883,1767774643543,-500.0,0.00027397,2]
[400661884,1767774643552,-500.0,0.00027397,2]
[400661885,1767774643562,-500.0,0.00027397,2]
[400661886,1767774643573,-500.0,0.00027397,2]
[400661887,1767774643582,-555.16200186,0.00027397,2]
[400661888,1767774643592,-500.0,0.00027397,2]
[400661889,1767774643601,-280.11227331,0.00027397,2]
[400661890,1767774643610,-3024.23,0.00027397,2]
[400661891,1767774643619,-500.0,0.00027397,2]
[400661892,1767774643629,-500.0,0.00027397,2]
[400661893,1767774643639,-500.0,0.00027397,2]
[400661894,1767774643650,-538.47909341,0.00027397,2]
[400661895,1767774643659,-500.0,0.00027397,2]
[400661896,1767774643668,-372.26949237,0.00027397,2]
[400661897,1767774643677,-2787.6,0.00027397,2]
[400661898,1767774643689,-500.0,0.00027397,2]
[400661899,1767774643700,-500.0,0.00027397,2]
[400661900,1767774643710,-500.0,0.00027397,2]
[400661901,1767774643719,-500.0,0.00027397,2]
[400661902,1767774643728,-500.0,0.00027397,2]
[400661903,1767774643738,-500.0,0.00027397,2]
[400661904,1767774643748,-500.0,0.00027397,2]
[400661905,1767774643757,-393.32959088,0.00027397,2]
[400661906,1767774643767,-548.79,0.00027397,2]
[400661907,1767774643776,-500.0,0.00027397,2]
[400661908,1767774643786,-500.0,0.00027397,2]
[400661909,1767774643795,-500.0,0.00027397,2]
[400661910,1767774643804,-500.0,0.00027397,2]
[400661911,1767774643814,-500.0,0.00027397,2]
[400661912,1767774643823,-500.0,0.00027397,2]
[400661913,1767774643832,-465.25478122,0.00027397,2]
[400661914,1767774643841,-506.82763585,0.00027397,2]
[400661915,1767774643850,-505.05,0.00027397,2]
[400661916,1767774643860,-500.0,0.00027397,2]
[400661917,1767774643869,-500.0,0.00027397,2]
[400661918,1767774643878,-500.0,0.00027397,2]
[400661919,1767774643888,-520.81138801,0.00027397,2]
[400661920,1767774643898,-500.0,0.00027397,2]
[400661921,1767774643907,-367.0277034,0.00027397,2]
[400661922,1767774643917,-500.0,0.00027397,2]
[400661923,1767774643926,-500.0,0.00027397,2]
[400661924,1767774643935,-500.0,0.00027397,2]
[400661925,1767774643945,-521.92991059,0.00027397,2]
[400661926,1767774643954,-500.0,0.00027397,2]
[400661927,1767774643963,-265.18668743,0.00027397,2]
[400661928,1767774643972,-500.0,0.00027397,2]
[400661929,1767774643982,-500.0,0.00027397,2]
[400661930,1767774643991,-245.10460636,0.00027397,2]
[400661931,1767774644001,-2410.47,0.00027397,2]
[400661932,1767774644011,-500.0,0.00027397,2]
[400661933,1767774644020,-478.12849499,0.00027397,2]
[400661934,1767774644030,-262.96549586,0.00027397,2]
[400661935,1767774644040,-500.0,0.00027397,2]
[400661936,1767774644049,-500.0,0.00027397,2]
[400661937,1767774644059,-500.0,0.00027397,2]
[400661938,1767774644068,-500.0,0.00027397,2]
[400661939,1767774644078,-304.60912659,0.00027397,2]
[400661940,1767774644089,-419.71377291,0.00027397,2]
[400661941,1767774644099,-500.0,0.00027397,2]
[400661942,1767774644108,-1000.0,0.00027397,2]
[400661943,1767774644118,-500.0,0.00027397,2]
[400661944,1767774644127,-244.26444748,0.00027397,2]
[400661945,1767774644137,-500.0,0.00027397,2]
[400661946,1767774644146,-500.0,0.00027397,2]
[400661947,1767774644156,-301.74446524,0.00027397,2]
[400661948,1767774644166,-289.6846056,0.00027397,2]
[400661949,1767774644176,-500.0,0.00027397,2]
[400661950,1767774644190,-500.0,0.00027397,2]
[400661952,1767774644201,-500.0,0.00027397,2]
[400661954,1767774644210,-500.0,0.00027397,2]
[400661956,1767774644220,-500.0,0.00027397,2]
[400661957,1767774644231,-500.0,0.00027397,2]
[400661959,1767774644241,-689.83,0.00027397,2]
[400661960,1767774644250,-500.0,0.00027397,2]
[400661961,1767774644261,-500.0,0.00027397,2]
[400661962,1767774644271,-500.0,0.00027397,2]
[400661963,1767774644280,-500.0,0.00027397,2]
[400661964,1767774644290,-554.6093971,0.00027397,2]
[400661965,1767774644300,-500.0,0.00027397,2]
[400661966,1767774644309,-500.0,0.00027397,2]
[400661967,1767774644319,-500.0,0.00027397,2]
[400661968,1767774644329,-500.0,0.00027397,2]
[400661969,1767774644339,-185.51376726,0.00027397,2]
[400661970,1767774644349,-500.0,0.00027397,2]
[400661971,1767774644359,-500.0,0.00027397,2]
[400661972,1767774644368,-500.0,0.00027397,2]
[400661973,1767774644463,-500.0,0.00027397,2]
[400661974,1767774644472,-640.28751688,0.00027397,2]
[400661975,1767774644482,-500.0,0.00027397,2]
[400661976,1767774644491,-913.08,0.00027397,2]
[400661977,1767774644500,-500.0,0.00027397,2]
[400661978,1767774644510,-500.0,0.00027397,2]
[400661979,1767774644519,-600.4678,0.00027397,2]
[400661980,1767774644528,-500.0,0.00027397,2]
[400661981,1767774644537,-500.0,0.00027397,2]
[400661982,1767774644547,-500.0,0.00027397,2]
[400661983,1767774644556,-500.0,0.00027397,2]
[400661984,1767774644566,-500.0,0.00027397,2]
[400661985,1767774644575,-500.0,0.00027397,2]
[400661986,1767774644584,-500.0,0.00027397,2]
[400661987,1767774644594,-500.0,0.00027397,2]
[400661988,1767774644603,-500.0,0.00027397,2]
[400661989,1767774644612,-500.0,0.00027397,2]
[400661990,1767774644621,-500.0,0.00027397,2]
[400661991,1767774644631,-500.0,0.00027397,2]
[400661992,1767774644640,-500.0,0.00027397,2]
[400661993,1767774644650,-500.0,0.00027397,2]
[400661994,1767774644662,-500.0,0.00027397,2]
[400661995,1767774644671,-500.0,0.00027397,2]
[400661996,1767774644680,-500.0,0.00027397,2]
[400661997,1767774644690,-516.80670981,0.00027397,2]
[400661998,1767774644699,-500.0,0.00027397,2]
[400661999,1767774644708,-500.0,0.00027397,2]
[400662000,1767774644717,-500.0,0.00027397,2]
[400662001,1767774644726,-500.0,0.00027397,2]
[400662002,1767774644735,-512.07253337,0.00027397,2]
[400662003,1767774644744,-500.0,0.00027397,2]
[400662004,1767774644753,-235.34521511,0.00027397,2]
[400662005,1767774644762,-510.98678254,0.00027397,2]
[400662006,1767774644771,-797.84,0.00027397,2]
[400662007,1767774644781,-500.0,0.00027397,2]
[400662008,1767774644790,-500.0,0.00027397,2]
[400662009,1767774644799,-500.0,0.00027397,2]
[400662010,1767774644809,-500.0,0.00027397,2]
[400662011,1767774644818,-500.0,0.00027397,2]
[400662012,1767774644828,-3088.57,0.00027397,2]
[400662013,1767774644836,-500.0,0.00027397,2]
[400662014,1767774644846,-500.0,0.00027397,2]
[400662015,1767774644855,-500.0,0.00027397,2]
[400662016,1767774644864,-927.69,0.00027397,2]
[400662017,1767774644874,-500.0,0.00027397,2]
[400662018,1767774644883,-355.20033624,0.00027397,2]
[400662019,1767774644893,-500.0,0.00027397,2]
[400662020,1767774644902,-507.72477345,0.00027397,2]
[400662021,1767774644911,-500.0,0.00027397,2]
[400662022,1767774644920,-246.45415352,0.00027397,2]
[400662023,1767774644930,-500.0,0.00027397,2]
[400662024,1767774644939,-500.0,0.00027397,2]
[400662025,1767774644948,-500.0,0.00027397,2]
[400662026,1767774644958,-500.0,0.00027397,2]
[400662027,1767774644967,-500.0,0.00027397,2]
[400662028,1767774644976,-484.89464713,0.00027397,2]
[400662029,1767774644985,-430.45190106,0.00027397,2]
[400662030,1767774644994,-500.0,0.00027397,2]
[400662031,1767774645003,-500.0,0.00027397,2]
[400662032,1767774645012,-500.0,0.00027397,2]
[400662033,1767774645022,-500.0,0.00027397,2]
[400662034,1767774645031,-500.0,0.00027397,2]
[400662035,1767774645040,-223.83334036,0.00027397,2]
[400662036,1767774645050,-500.0,0.00027397,2]
[400662037,1767774645059,-500.0,0.00027397,2]
[400662038,1767774645069,-372.58005408,0.00027397,2]
[400662039,1767774645078,-500.0,0.00027397,2]
[400662040,1767774645086,-500.0,0.00027397,2]
[400662041,1767774645095,-500.0,0.00027397,2]
[400662042,1767774645104,-500.0,0.00027397,2]
[400662043,1767774645114,-650.0,0.00027397,5]
[400662044,1767774645123,-514.81933417,0.00027397,5]
[400662045,1767774645132,-701.0,0.00027398,2]
[400662046,1767774645142,-875.0,0.00027399,2]
[400662047,1767774645151,-587.58501506,0.00027461,7]
[400662048,1767774645161,-45934.68102333,0.000275,2]
[400662049,1767774645171,-2832.2028351,0.00027521,2]
[400662050,1767774645180,-701.0,0.00027535,2]
[400662051,1767774645190,-876.0,0.00027655,2]
[400662052,1767774645207,-500.0,0.00027671,2]
[400662053,1767774645218,-500.0,0.00027671,2]
[400662054,1767774645228,-500.0,0.00027671,2]
[400662055,1767774645238,-601.36,0.00027671,2]
[400662056,1767774645247,-500.00000001,0.00027671,2]
[400662057,1767774645256,-212.09622062,0.00027671,2]
[400662058,1767774645266,-500.0,0.00027671,2]
[400662059,1767774645276,-500.0,0.00027671,2]
[400662060,1767774645287,-500.0,0.00027671,2]
[400662061,1767774645295,-500.0,0.00027671,2]
[400662062,1767774645304,-625.04805459,0.00027671,2]
[400662063,1767774645313,-500.0,0.00027671,2]
[400662064,1767774645323,-533.45349545,0.00027671,2]
[400662065,1767774645332,-500.0,0.00027671,2]
[400662066,1767774645341,-690.11,0.00027671,2]
[400662067,1767774645350,-14665.45,0.00027671,2]
[400662068,1767774645359,-500.0,0.00027671,2]
[400662069,1767774645368,-500.0,0.00027671,2]
[400662070,1767774645377,-500.0,0.00027671,2]
[400662071,1767774645386,-500.0,0.00027671,2]
[400662072,1767774645395,-500.0,0.00027671,2]
[400662073,1767774645404,-576.21473139,0.00027671,2]
[400662074,1767774645413,-500.0,0.00027671,2]
[400662075,1767774645422,-541.45465841,0.00027671,2]
[400662076,1767774645432,-500.0,0.00027671,2]
[400662077,1767774645440,-500.0,0.00027671,2]
[400662078,1767774645449,-500.0,0.00027671,2]
[400662079,1767774645457,-500.0,0.00027671,2]
[400662080,1767774645466,-500.0,0.00027671,2]
[400662081,1767774645476,-500.0,0.00027671,2]
[400662083,1767774645486,-484.0468228,0.00027671,2]
[400662084,1767774645495,-500.0,0.00027671,2]
[400662085,1767774645505,-500.0,0.00027671,2]
[400662086,1767774645514,-500.0,0.00027671,2]
[400662087,1767774645523,-500.0,0.00027671,2]
[400662088,1767774645532,-500.0,0.00027671,2]
[400662089,1767774645541,-500.0,0.00027671,2]
[400662090,1767774645550,-500.0,0.00027671,2]